[Event "Titled Tuesday Blitz July 6 2021"]
[White "Chen, Max"]
[Black "Julianos82"]
[WhiteFideId "2622440"]
[WhiteElo "2483"]
[BlackElo "2362"]
[Result "1-0"]
[Round "08"]
[TimeControl "180+1"]
[Date "2021.07.06"]
[WhiteClock "0:00:16"]
[BlackClock "0:00:14"]

1. e4 {[%clk 0:02:43]}  c5 {[%clk 0:02:59]} 2. c3 {[%clk 0:02:43]}  d6 {[%clk 0:02:58]} 3. d4 {[%clk 0:02:43]}  Nf6 {[%clk 0:02:58]} 4. Bd3 {[%clk 0:02:42]}  Nc6 {[%clk 0:02:58]} 5. Nf3 {[%clk 0:02:42]}  Bg4 {[%clk 0:02:54]} 6. d5 {[%clk 0:02:41]}  Ne5 {[%clk 0:02:52]} 7. Nxe5 {[%clk 0:02:41]}  dxe5 {[%clk 0:02:50]} 8. f3 {[%clk 0:02:31]}  Bd7 {[%clk 0:02:47]} 9. O-O {[%clk 0:02:31]}  e6 {[%clk 0:02:45]} 10. c4 {[%clk 0:02:26]}  exd5 {[%clk 0:02:45]} 11. cxd5 {[%clk 0:02:24]}  Be7 {[%clk 0:02:39]} 12. a4 {[%clk 0:02:21]}  O-O {[%clk 0:02:39]} 13. Be3 {[%clk 0:02:21]}  b6 {[%clk 0:02:36]} 14. Be2 {[%clk 0:02:14]}  Ne8 {[%clk 0:02:35]} 15. Nd2 {[%clk 0:02:12]}  Nd6 {[%clk 0:02:34]} 16. b3 {[%clk 0:02:10]}  Bg5 {[%clk 0:02:32]} 17. Bf2 {[%clk 0:02:08]}  Bxd2 {[%clk 0:02:28]} 18. Qxd2 {[%clk 0:02:08]}  a5 {[%clk 0:02:26]} 19. Bd3 {[%clk 0:02:02]}  h6 {[%clk 0:02:24]} 20. f4 {[%clk 0:02:02]}  Qe7 {[%clk 0:02:17]} 21. fxe5 {[%clk 0:01:53]}  Qxe5 {[%clk 0:02:18]} 22. Qe2 {[%clk 0:01:54]}  Rae8 {[%clk 0:02:10]} 23. Rae1 {[%clk 0:01:49]}  f5 {[%clk 0:02:07]} 24. exf5 {[%clk 0:01:44]}  Qxe2 {[%clk 0:02:03]} 25. Rxe2 {[%clk 0:01:40]}  Rxe2 {[%clk 0:02:00]} 26. Bxe2 {[%clk 0:01:41]}  Nxf5 {[%clk 0:01:56]} 27. Re1 {[%clk 0:01:16]}  Re8 {[%clk 0:01:52]} 28. Bc4 {[%clk 0:01:07]}  Rxe1+ {[%clk 0:01:46]} 29. Bxe1 {[%clk 0:01:08]}  Kf7 {[%clk 0:01:40]} 30. Kf2 {[%clk 0:01:05]}  Nd6 {[%clk 0:01:35]} 31. Bd3 {[%clk 0:01:01]}  Bf5 {[%clk 0:01:34]} 32. Ke3 {[%clk 0:00:58]}  Bd7 {[%clk 0:01:08]} 33. Bg3 {[%clk 0:00:56]}  Ke7 {[%clk 0:01:08]} 34. Kf3 {[%clk 0:00:45]}  Nf5 {[%clk 0:01:06]} 35. Be5 {[%clk 0:00:44]}  g5 {[%clk 0:01:03]} 36. Bc4 {[%clk 0:00:32]}  h5 {[%clk 0:00:54]} 37. Bc7 {[%clk 0:00:32]}  Nd6 {[%clk 0:00:48]} 38. Bxb6 {[%clk 0:00:28]}  Nxc4 {[%clk 0:00:46]} 39. bxc4 {[%clk 0:00:28]}  Bxa4 {[%clk 0:00:46]} 40. Bxc5+ {[%clk 0:00:28]}  Kf6 {[%clk 0:00:42]} 41. Ke4 {[%clk 0:00:28]}  Bb3 {[%clk 0:00:41]} 42. Kd4 {[%clk 0:00:26]}  h4 {[%clk 0:00:38]} 43. Ba3 {[%clk 0:00:21]}  g4 {[%clk 0:00:34]} 44. g3 {[%clk 0:00:20]}  hxg3 {[%clk 0:00:34]} 45. hxg3 {[%clk 0:00:21]}  a4 {[%clk 0:00:32]} 46. c5 {[%clk 0:00:21]}  Ke7 {[%clk 0:00:31]} 47. c6+ {[%clk 0:00:20]}  Kd8 {[%clk 0:00:31]} 48. Kc5 {[%clk 0:00:19]}  Bc2 {[%clk 0:00:27]} 49. d6 {[%clk 0:00:19]}  Bf5 {[%clk 0:00:23]} 50. Kb5 {[%clk 0:00:19]}  Bc2 {[%clk 0:00:19]} 51. Bb4 {[%clk 0:00:16]}  Bf5 {[%clk 0:00:14]} 52. Kxa4 {[%clk 0:00:15]}  Kc8 {[%clk 0:00:14]} 53. Kb5 {[%clk 0:00:15]}  Be6 {[%clk 0:00:14]} 54. Kc5 {[%clk 0:00:15]}  Bf5 {[%clk 0:00:14]} 55. Ba5 {[%clk 0:00:15]}  Be6 {[%clk 0:00:13]} 56. Kd4 {[%clk 0:00:16]}  Bf5 {[%clk 0:00:13]} 57. Ke5 {[%clk 0:00:16]}  Bd7 {[%clk 0:00:13]} 58. cxd7+ {[%clk 0:00:16]}  Kxd7 {[%clk 0:00:14]} 59. Kd5 {[%clk 0:00:16]} 1-0


[Site "https://www.chess.com"]

[Event "Titled Tuesday Blitz July 6 2021"]
[White "Costachi, Mihnea"]
[Black "Tokman, Ariel"]
[WhiteFideId "1217518"]
[BlackFideId "117420"]
[WhiteElo "2482"]
[BlackElo "2345"]
[Result "1-0"]
[Round "08"]
[TimeControl "180+1"]
[Date "2021.07.06"]
[WhiteClock "0:02:27"]
[BlackClock "0:00:07"]

1. e4 {[%clk 0:03:00]}  d6 {[%clk 0:02:57]} 2. d4 {[%clk 0:03:00]}  Nf6 {[%clk 0:02:57]} 3. Nc3 {[%clk 0:03:00]}  Nbd7 {[%clk 0:02:57]} 4. Nf3 {[%clk 0:03:00]}  e5 {[%clk 0:02:58]} 5. Bc4 {[%clk 0:03:01]}  Be7 {[%clk 0:02:58]} 6. O-O {[%clk 0:03:01]}  O-O {[%clk 0:02:57]} 7. h3 {[%clk 0:03:01]}  a6 {[%clk 0:02:57]} 8. a3 {[%clk 0:03:01]}  b5 {[%clk 0:02:57]} 9. Ba2 {[%clk 0:03:01]}  Bb7 {[%clk 0:02:57]} 10. Qe2 {[%clk 0:03:02]}  c6 {[%clk 0:02:49]} 11. Bg5 {[%clk 0:03:01]}  Qc7 {[%clk 0:02:48]} 12. Rad1 {[%clk 0:02:59]}  Rad8 {[%clk 0:02:47]} 13. Nh4 {[%clk 0:02:57]}  exd4 {[%clk 0:02:35]} 14. Nf5 {[%clk 0:02:56]}  Ne5 {[%clk 0:02:35]} 15. Rxd4 {[%clk 0:02:51]}  c5 {[%clk 0:02:34]} 16. Rd2 {[%clk 0:02:48]}  h6 {[%clk 0:02:29]} 17. Bh4 {[%clk 0:02:46]}  Rfe8 {[%clk 0:02:19]} 18. Rfd1 {[%clk 0:02:45]}  Ng6 {[%clk 0:02:06]} 19. Bxf6 {[%clk 0:02:42]}  Bxf6 {[%clk 0:02:05]} 20. Nxd6 {[%clk 0:02:42]}  Rf8 {[%clk 0:01:11]} 21. Nxf7 {[%clk 0:02:32]}  Rxd2 {[%clk 0:00:58]} 22. Nxh6+ {[%clk 0:02:32]}  Kh7 {[%clk 0:00:56]} 23. Qxd2 {[%clk 0:02:32]}  Bd4 {[%clk 0:00:16]} 24. Nf5 {[%clk 0:02:28]}  Be5 {[%clk 0:00:07]} 25. Qg5 {[%clk 0:02:27]} 1-0


[Site "https://www.chess.com"]

[Event "Titled Tuesday Blitz July 6 2021"]
[White "Cunjalo, Faris"]
[Black "Ciorgovean, Iustin"]
[WhiteFideId "14410710"]
[BlackFideId "1242911"]
[WhiteElo "2234"]
[BlackElo "2075"]
[Result "1-0"]
[Round "08"]
[TimeControl "180+1"]
[Date "2021.07.06"]
[WhiteClock "0:00:21"]
[BlackClock "0:00:39"]

1. d4 {[%clk 0:03:00]}  Nf6 {[%clk 0:02:59]} 2. c4 {[%clk 0:03:00]}  g6 {[%clk 0:03:00]} 3. Nc3 {[%clk 0:02:59]}  Bg7 {[%clk 0:03:01]} 4. e4 {[%clk 0:02:59]}  O-O {[%clk 0:03:01]} 5. Be2 {[%clk 0:03:00]}  d6 {[%clk 0:03:02]} 6. Bg5 {[%clk 0:03:00]}  a6 {[%clk 0:03:01]} 7. Nf3 {[%clk 0:03:00]}  Bg4 {[%clk 0:03:00]} 8. O-O {[%clk 0:02:57]}  Nfd7 {[%clk 0:03:00]} 9. Be3 {[%clk 0:02:37]}  Nc6 {[%clk 0:02:54]} 10. d5 {[%clk 0:02:37]}  Bxf3 {[%clk 0:02:35]} 11. Bxf3 {[%clk 0:02:38]}  Na5 {[%clk 0:02:34]} 12. Be2 {[%clk 0:02:36]}  Bxc3 {[%clk 0:02:32]} 13. bxc3 {[%clk 0:02:35]}  e5 {[%clk 0:02:33]} 14. dxe6 {[%clk 0:02:15]}  fxe6 {[%clk 0:02:32]} 15. f4 {[%clk 0:02:15]}  Qe7 {[%clk 0:02:29]} 16. Qd3 {[%clk 0:02:08]}  b6 {[%clk 0:02:09]} 17. Bf3 {[%clk 0:01:43]}  Rad8 {[%clk 0:02:07]} 18. Rae1 {[%clk 0:01:18]}  e5 {[%clk 0:01:57]} 19. f5 {[%clk 0:01:16]}  Qf7 {[%clk 0:01:41]} 20. Bh6 {[%clk 0:01:11]}  Qxc4 {[%clk 0:01:38]} 21. Qxc4+ {[%clk 0:01:10]}  Nxc4 {[%clk 0:01:38]} 22. Bxf8 {[%clk 0:01:11]}  Rxf8 {[%clk 0:01:39]} 23. fxg6 {[%clk 0:01:06]}  hxg6 {[%clk 0:01:38]} 24. Be2 {[%clk 0:01:03]}  Rxf1+ {[%clk 0:01:27]} 25. Bxf1 {[%clk 0:01:04]}  Na5 {[%clk 0:01:24]} 26. Bxa6 {[%clk 0:01:04]}  Nc5 {[%clk 0:01:23]} 27. Bb5 {[%clk 0:00:56]}  Kg7 {[%clk 0:01:22]} 28. Kf2 {[%clk 0:00:54]}  Nab7 {[%clk 0:01:20]} 29. Ke3 {[%clk 0:00:48]}  Nd8 {[%clk 0:01:19]} 30. g3 {[%clk 0:00:46]}  Nde6 {[%clk 0:01:19]} 31. h4 {[%clk 0:00:47]}  Nd8 {[%clk 0:01:15]} 32. Bc4 {[%clk 0:00:43]}  Nc6 {[%clk 0:01:15]} 33. Bd5 {[%clk 0:00:43]}  Ne7 {[%clk 0:01:14]} 34. Rf1 {[%clk 0:00:43]}  Nxd5+ {[%clk 0:01:06]} 35. exd5 {[%clk 0:00:44]}  Na4 {[%clk 0:01:06]} 36. Kd3 {[%clk 0:00:26]}  Nb2+ {[%clk 0:01:06]} 37. Ke4 {[%clk 0:00:25]}  Na4 {[%clk 0:01:05]} 38. c4 {[%clk 0:00:25]}  Nc3+ {[%clk 0:00:59]} 39. Kd3 {[%clk 0:00:26]}  Na4 {[%clk 0:00:56]} 40. g4 {[%clk 0:00:23]}  Kg8 {[%clk 0:00:56]} 41. h5 {[%clk 0:00:21]}  Kg7 {[%clk 0:00:53]} 42. hxg6 {[%clk 0:00:18]}  Kxg6 {[%clk 0:00:54]} 43. Rf8 {[%clk 0:00:19]}  Nb2+ {[%clk 0:00:50]} 44. Kc3 {[%clk 0:00:18]}  Nd1+ {[%clk 0:00:50]} 45. Kc2 {[%clk 0:00:17]}  Ne3+ {[%clk 0:00:50]} 46. Kd3 {[%clk 0:00:18]}  Nxg4 {[%clk 0:00:50]} 47. Rc8 {[%clk 0:00:19]}  Nf2+ {[%clk 0:00:48]} 48. Ke2 {[%clk 0:00:17]}  Ne4 {[%clk 0:00:47]} 49. Rxc7 {[%clk 0:00:17]}  Nc3+ {[%clk 0:00:48]} 50. Kd2 {[%clk 0:00:17]}  Nxa2 {[%clk 0:00:47]} 51. Rc6 {[%clk 0:00:18]}  Kf5 {[%clk 0:00:42]} 52. Rxb6 {[%clk 0:00:17]}  Ke4 {[%clk 0:00:40]} 53. Rb2 {[%clk 0:00:18]}  Kd4 {[%clk 0:00:39]} 54. Rxa2 {[%clk 0:00:18]}  Kxc4 {[%clk 0:00:40]} 55. Ra5 {[%clk 0:00:18]}  Kd4 {[%clk 0:00:40]} 56. Ke2 {[%clk 0:00:17]}  Ke4 {[%clk 0:00:40]} 57. Ra4+ {[%clk 0:00:14]}  Kxd5 {[%clk 0:00:40]} 58. Kd3 {[%clk 0:00:15]}  Kc5 {[%clk 0:00:40]} 59. Ra5+ {[%clk 0:00:15]}  Kb6 {[%clk 0:00:39]} 60. Rd5 {[%clk 0:00:15]}  Kc6 {[%clk 0:00:40]} 61. Ke4 {[%clk 0:00:16]}  Kd7 {[%clk 0:00:39]} 62. Rd2 {[%clk 0:00:17]}  Ke6 {[%clk 0:00:39]} 63. Rd1 {[%clk 0:00:17]}  Kf6 {[%clk 0:00:38]} 64. Kd5 {[%clk 0:00:18]}  Kf5 {[%clk 0:00:38]} 65. Rf1+ {[%clk 0:00:18]}  Kg4 {[%clk 0:00:39]} 66. Kxd6 {[%clk 0:00:18]}  e4 {[%clk 0:00:39]} 67. Kd5 {[%clk 0:00:18]}  e3 {[%clk 0:00:39]} 68. Kd4 {[%clk 0:00:19]}  e2 {[%clk 0:00:39]} 69. Re1 {[%clk 0:00:20]}  Kf3 {[%clk 0:00:39]} 70. Kd3 {[%clk 0:00:21]} 1-0


[Site "https://www.chess.com"]

[Event "Titled Tuesday Blitz July 6 2021"]
[White "Daianu, Cristian-Clement"]
[Black "Sawlin, Leonid"]
[WhiteFideId "1208926"]
[BlackFideId "4689542"]
[WhiteElo "2133"]
[BlackElo "2412"]
[Result "0-1"]
[Round "08"]
[TimeControl "180+1"]
[Date "2021.07.06"]
[WhiteClock "0:00:17"]
[BlackClock "0:01:04"]

1. e4 {[%clk 0:03:00]}  e6 {[%clk 0:02:59]} 2. d4 {[%clk 0:02:55]}  d5 {[%clk 0:03:00]} 3. Nd2 {[%clk 0:02:55]}  Nf6 {[%clk 0:03:00]} 4. e5 {[%clk 0:02:55]}  Nfd7 {[%clk 0:03:01]} 5. Bd3 {[%clk 0:02:56]}  c5 {[%clk 0:03:02]} 6. c3 {[%clk 0:02:57]}  Nc6 {[%clk 0:03:02]} 7. Ngf3 {[%clk 0:02:57]}  Be7 {[%clk 0:03:02]} 8. O-O {[%clk 0:02:58]}  Qb6 {[%clk 0:03:01]} 9. a4 {[%clk 0:02:51]}  cxd4 {[%clk 0:03:01]} 10. a5 {[%clk 0:02:51]}  Nxa5 {[%clk 0:02:57]} 11. cxd4 {[%clk 0:02:51]}  Nc6 {[%clk 0:02:57]} 12. Nb3 {[%clk 0:02:46]}  h6 {[%clk 0:02:52]} 13. Bb1 {[%clk 0:02:44]}  g5 {[%clk 0:02:34]} 14. Be3 {[%clk 0:02:42]}  g4 {[%clk 0:02:32]} 15. Ne1 {[%clk 0:02:34]}  h5 {[%clk 0:02:31]} 16. f3 {[%clk 0:02:32]}  Ndxe5 {[%clk 0:02:31]} 17. fxg4 {[%clk 0:02:16]}  Nxg4 {[%clk 0:02:30]} 18. Qf3 {[%clk 0:02:08]}  Nxe3 {[%clk 0:02:20]} 19. Qxe3 {[%clk 0:02:09]}  e5 {[%clk 0:02:20]} 20. Nf3 {[%clk 0:02:06]}  e4 {[%clk 0:02:02]} 21. Nfd2 {[%clk 0:02:04]}  Be6 {[%clk 0:02:01]} 22. Kh1 {[%clk 0:01:59]}  h4 {[%clk 0:02:01]} 23. h3 {[%clk 0:01:58]}  O-O-O {[%clk 0:01:59]} 24. Nc5 {[%clk 0:01:51]}  Bxc5 {[%clk 0:01:58]} 25. dxc5 {[%clk 0:01:51]}  Qc7 {[%clk 0:01:58]} 26. b4 {[%clk 0:01:46]}  a6 {[%clk 0:01:47]} 27. Nb3 {[%clk 0:00:53]}  Nxb4 {[%clk 0:01:45]} 28. Qc3 {[%clk 0:00:50]}  Nc6 {[%clk 0:01:44]} 29. Nd4 {[%clk 0:00:36]}  Qe5 {[%clk 0:01:38]} 30. Ra4 {[%clk 0:00:36]}  Bd7 {[%clk 0:01:29]} 31. Rd1 {[%clk 0:00:27]}  Rhg8 {[%clk 0:01:15]} 32. Qd2 {[%clk 0:00:20]}  Qg3 {[%clk 0:01:05]} 33. Ne2 {[%clk 0:00:17]}  Qxg2# {[%clk 0:01:04]} 0-1


[Site "https://www.chess.com"]

[Event "Titled Tuesday Blitz July 6 2021"]
[White "Deepan Chakkravarthy J."]
[Black "Matinian, Nikita"]
[WhiteFideId "5011132"]
[BlackFideId "24129100"]
[WhiteElo "2490"]
[BlackElo "2410"]
[Result "1/2-1/2"]
[Round "08"]
[TimeControl "180+1"]
[Date "2021.07.06"]
[WhiteClock "0:00:09"]
[BlackClock "0:00:04"]

1. e4 {[%clk 0:02:58]}  e5 {[%clk 0:03:00]} 2. Nf3 {[%clk 0:02:58]}  Nc6 {[%clk 0:03:00]} 3. Bc4 {[%clk 0:02:57]}  Nf6 {[%clk 0:03:00]} 4. d3 {[%clk 0:02:56]}  h6 {[%clk 0:03:00]} 5. O-O {[%clk 0:02:55]}  d6 {[%clk 0:02:58]} 6. Re1 {[%clk 0:02:55]}  g5 {[%clk 0:02:54]} 7. c3 {[%clk 0:02:53]}  g4 {[%clk 0:02:55]} 8. Nfd2 {[%clk 0:02:52]}  h5 {[%clk 0:02:54]} 9. Nf1 {[%clk 0:02:52]}  Be6 {[%clk 0:02:52]} 10. Bxe6 {[%clk 0:02:50]}  fxe6 {[%clk 0:02:53]} 11. d4 {[%clk 0:02:50]}  Qd7 {[%clk 0:02:47]} 12. b4 {[%clk 0:02:49]}  exd4 {[%clk 0:02:36]} 13. b5 {[%clk 0:02:49]}  Ne7 {[%clk 0:02:34]} 14. cxd4 {[%clk 0:02:48]}  Qxb5 {[%clk 0:02:34]} 15. Nc3 {[%clk 0:02:47]}  Qd7 {[%clk 0:02:30]} 16. Rb1 {[%clk 0:02:42]}  b6 {[%clk 0:02:30]} 17. Qc2 {[%clk 0:02:29]}  Bg7 {[%clk 0:02:10]} 18. a4 {[%clk 0:02:17]}  O-O {[%clk 0:02:06]} 19. Bg5 {[%clk 0:02:15]}  Rf7 {[%clk 0:02:04]} 20. Ng3 {[%clk 0:02:13]}  Raf8 {[%clk 0:01:59]} 21. Re2 {[%clk 0:02:11]}  Nh7 {[%clk 0:01:54]} 22. Be3 {[%clk 0:02:01]}  h4 {[%clk 0:01:54]} 23. Nh5 {[%clk 0:02:01]}  h3 {[%clk 0:01:54]} 24. g3 {[%clk 0:01:54]}  Rf3 {[%clk 0:01:44]} 25. Nf4 {[%clk 0:01:44]}  e5 {[%clk 0:01:41]} 26. dxe5 {[%clk 0:01:42]}  Bxe5 {[%clk 0:01:41]} 27. Ncd5 {[%clk 0:01:39]}  Nxd5 {[%clk 0:01:40]} 28. exd5 {[%clk 0:01:38]}  Qf5 {[%clk 0:01:17]} 29. Qxf5 {[%clk 0:01:33]}  Rxf5 {[%clk 0:01:18]} 30. Ne6 {[%clk 0:01:33]}  Nf6 {[%clk 0:00:52]} 31. Nxc7 {[%clk 0:01:31]}  Kf7 {[%clk 0:00:40]} 32. Rd1 {[%clk 0:01:21]}  Bc3 {[%clk 0:00:28]} 33. Nb5 {[%clk 0:00:59]}  Bb4 {[%clk 0:00:28]} 34. Nd4 {[%clk 0:00:45]}  Nxd5 {[%clk 0:00:20]} 35. Nxf5 {[%clk 0:00:40]}  Rxf5 {[%clk 0:00:21]} 36. Bd2 {[%clk 0:00:37]}  Bc5 {[%clk 0:00:20]} 37. Be1 {[%clk 0:00:37]}  Nf6 {[%clk 0:00:16]} 38. a5 {[%clk 0:00:36]}  d5 {[%clk 0:00:16]} 39. a6 {[%clk 0:00:35]}  Ne4 {[%clk 0:00:16]} 40. Kf1 {[%clk 0:00:35]}  Ng5 {[%clk 0:00:15]} 41. Kg1 {[%clk 0:00:30]}  Nf3+ {[%clk 0:00:15]} 42. Kh1 {[%clk 0:00:30]}  d4 {[%clk 0:00:14]} 43. Re4 {[%clk 0:00:27]}  Ne5 {[%clk 0:00:10]} 44. Rf4 {[%clk 0:00:24]}  Ke6 {[%clk 0:00:08]} 45. Rxf5 {[%clk 0:00:22]}  Kxf5 {[%clk 0:00:09]} 46. Bd2 {[%clk 0:00:21]}  Nf3 {[%clk 0:00:10]} 47. Bf4 {[%clk 0:00:21]}  Ke4 {[%clk 0:00:10]} 48. Rb1 {[%clk 0:00:20]}  d3 {[%clk 0:00:10]} 49. Bb8 {[%clk 0:00:19]}  b5 {[%clk 0:00:09]} 50. Rxb5 {[%clk 0:00:18]}  d2 {[%clk 0:00:09]} 51. Rb1 {[%clk 0:00:18]}  Bxf2 {[%clk 0:00:09]} 52. Bf4 {[%clk 0:00:18]}  Be3 {[%clk 0:00:09]} 53. Bb8 {[%clk 0:00:13]}  Kd3 {[%clk 0:00:10]} 54. Ra1 {[%clk 0:00:13]}  Ke2 {[%clk 0:00:10]} 55. Rb1 {[%clk 0:00:11]}  Ne5 {[%clk 0:00:10]} 56. Bxe5 {[%clk 0:00:10]}  d1=Q+ {[%clk 0:00:05]} 57. Rxd1 {[%clk 0:00:10]}  Kxd1 {[%clk 0:00:06]} 58. Bd4 {[%clk 0:00:10]}  Ke2 {[%clk 0:00:04]} 59. Bxa7 {[%clk 0:00:09]}  Bxa7 {[%clk 0:00:04]} 1/2-1/2


[Site "https://www.chess.com"]

[Event "Titled Tuesday Blitz July 6 2021"]
[White "Devaev, Alexander"]
[Black "Khalafova, Narmin"]
[WhiteFideId "4169395"]
[BlackFideId "13402625"]
[WhiteElo "2185"]
[BlackElo "2109"]
[Result "0-1"]
[Round "08"]
[TimeControl "180+1"]
[Date "2021.07.06"]
[WhiteClock "0:00:04"]
[BlackClock "0:00:17"]

1. d4 {[%clk 0:03:00]}  d5 {[%clk 0:02:59]} 2. c4 {[%clk 0:03:01]}  c6 {[%clk 0:02:59]} 3. cxd5 {[%clk 0:02:58]}  cxd5 {[%clk 0:03:00]} 4. Nc3 {[%clk 0:02:59]}  Nf6 {[%clk 0:03:00]} 5. Bf4 {[%clk 0:02:59]}  Nc6 {[%clk 0:02:59]} 6. e3 {[%clk 0:03:00]}  a6 {[%clk 0:02:59]} 7. Bd3 {[%clk 0:03:00]}  Bg4 {[%clk 0:02:57]} 8. f3 {[%clk 0:02:58]}  Bd7 {[%clk 0:02:44]} 9. Nge2 {[%clk 0:02:58]}  e6 {[%clk 0:02:42]} 10. O-O {[%clk 0:02:59]}  Be7 {[%clk 0:02:41]} 11. Rc1 {[%clk 0:02:59]}  O-O {[%clk 0:02:41]} 12. Na4 {[%clk 0:03:00]}  Re8 {[%clk 0:02:17]} 13. Bg5 {[%clk 0:02:52]}  h6 {[%clk 0:02:14]} 14. Bh4 {[%clk 0:02:52]}  Nh5 {[%clk 0:02:07]} 15. Bxe7 {[%clk 0:02:51]}  Qxe7 {[%clk 0:02:06]} 16. Nc5 {[%clk 0:02:44]}  Rab8 {[%clk 0:02:02]} 17. Bb1 {[%clk 0:02:37]}  e5 {[%clk 0:01:53]} 18. Ng3 {[%clk 0:01:36]}  Nxg3 {[%clk 0:01:42]} 19. hxg3 {[%clk 0:01:35]}  Red8 {[%clk 0:01:19]} 20. Re1 {[%clk 0:01:25]}  Qg5 {[%clk 0:01:13]} 21. Kf2 {[%clk 0:01:21]}  exd4 {[%clk 0:01:07]} 22. exd4 {[%clk 0:01:21]}  Bf5 {[%clk 0:01:07]} 23. Bxf5 {[%clk 0:01:07]}  Qxf5 {[%clk 0:01:08]} 24. Qd2 {[%clk 0:01:06]}  Rd6 {[%clk 0:00:58]} 25. Rc3 {[%clk 0:00:50]}  Qf6 {[%clk 0:00:41]} 26. Rd3 {[%clk 0:00:47]}  a5 {[%clk 0:00:35]} 27. a3 {[%clk 0:00:41]}  b6 {[%clk 0:00:34]} 28. Nb3 {[%clk 0:00:39]}  a4 {[%clk 0:00:31]} 29. Na1 {[%clk 0:00:31]}  Na5 {[%clk 0:00:26]} 30. Qf4 {[%clk 0:00:16]}  Qd8 {[%clk 0:00:20]} 31. b3 {[%clk 0:00:14]}  axb3 {[%clk 0:00:20]} 32. Nxb3 {[%clk 0:00:14]}  Nc4 {[%clk 0:00:20]} 33. a4 {[%clk 0:00:14]}  Ra8 {[%clk 0:00:20]} 34. Ra1 {[%clk 0:00:13]}  Re6 {[%clk 0:00:17]} 35. Nd2 {[%clk 0:00:10]}  Qe8 {[%clk 0:00:15]} 36. Nxc4 {[%clk 0:00:05]}  Re2+ {[%clk 0:00:15]} 37. Kg1 {[%clk 0:00:05]}  dxc4 {[%clk 0:00:16]} 38. Rc3 {[%clk 0:00:05]}  Re1+ {[%clk 0:00:16]} 39. Rxe1 {[%clk 0:00:04]}  Qxe1+ {[%clk 0:00:17]} 40. Kh2 {[%clk 0:00:04]}  Qxc3 {[%clk 0:00:17]} 0-1


[Site "https://www.chess.com"]

[Event "Titled Tuesday Blitz July 6 2021"]
[White "Dobrov, Vladimir"]
[Black "Samunenkov, Ihor"]
[WhiteFideId "4136594"]
[BlackFideId "14187086"]
[WhiteElo "2614"]
[BlackElo "2281"]
[Result "1-0"]
[Round "08"]
[TimeControl "180+1"]
[Date "2021.07.06"]
[WhiteClock "0:00:28"]
[BlackClock "0:00:09"]

1. d4 {[%clk 0:03:00]}  Nf6 {[%clk 0:02:59]} 2. c4 {[%clk 0:03:00]}  e6 {[%clk 0:02:59]} 3. Nf3 {[%clk 0:03:00]}  b6 {[%clk 0:02:57]} 4. Nc3 {[%clk 0:02:59]}  Bb7 {[%clk 0:02:57]} 5. a3 {[%clk 0:02:57]}  Ne4 {[%clk 0:02:57]} 6. Nxe4 {[%clk 0:02:56]}  Bxe4 {[%clk 0:02:58]} 7. Bf4 {[%clk 0:02:56]}  Be7 {[%clk 0:02:44]} 8. e3 {[%clk 0:02:56]}  O-O {[%clk 0:02:42]} 9. Bd3 {[%clk 0:02:56]}  d5 {[%clk 0:02:41]} 10. O-O {[%clk 0:02:56]}  Nd7 {[%clk 0:02:18]} 11. cxd5 {[%clk 0:02:45]}  exd5 {[%clk 0:01:41]} 12. Rc1 {[%clk 0:02:36]}  c5 {[%clk 0:01:35]} 13. Ba6 {[%clk 0:02:29]}  c4 {[%clk 0:00:54]} 14. Re1 {[%clk 0:02:19]}  b5 {[%clk 0:00:50]} 15. Bxb5 {[%clk 0:02:17]}  Rc8 {[%clk 0:00:45]} 16. Nd2 {[%clk 0:02:09]}  Nf6 {[%clk 0:00:37]} 17. Nxe4 {[%clk 0:02:05]}  Nxe4 {[%clk 0:00:38]} 18. Ba4 {[%clk 0:01:46]}  Qb6 {[%clk 0:00:37]} 19. f3 {[%clk 0:01:38]}  Ng5 {[%clk 0:00:31]} 20. Qd2 {[%clk 0:01:30]}  Ne6 {[%clk 0:00:30]} 21. Bg3 {[%clk 0:01:29]}  Bg5 {[%clk 0:00:30]} 22. h4 {[%clk 0:01:08]}  Bh6 {[%clk 0:00:29]} 23. Kh2 {[%clk 0:01:07]}  f5 {[%clk 0:00:21]} 24. Be5 {[%clk 0:01:03]}  f4 {[%clk 0:00:19]} 25. e4 {[%clk 0:01:01]}  Rcd8 {[%clk 0:00:17]} 26. exd5 {[%clk 0:00:57]}  Rxd5 {[%clk 0:00:18]} 27. Rxc4 {[%clk 0:00:56]}  Rfd8 {[%clk 0:00:18]} 28. Qc3 {[%clk 0:00:53]}  Nxd4 {[%clk 0:00:09]} 29. Rxd4 {[%clk 0:00:45]}  Rxd4 {[%clk 0:00:09]} 30. Bb3+ {[%clk 0:00:45]}  Kf8 {[%clk 0:00:07]} 31. Bxd4 {[%clk 0:00:38]}  Qxd4 {[%clk 0:00:08]} 32. Qc7 {[%clk 0:00:32]}  Qd7 {[%clk 0:00:09]} 33. Qc5+ {[%clk 0:00:31]}  Qd6 {[%clk 0:00:09]} 34. Qc4 {[%clk 0:00:28]} 1-0


[Site "https://www.chess.com"]

[Event "Titled Tuesday Blitz July 6 2021"]
[White "Erdogdu, Mert"]
[Black "Harshavardhan G B"]
[WhiteFideId "6301495"]
[BlackFideId "25059009"]
[WhiteElo "2485"]
[BlackElo "1825"]
[Result "1-0"]
[Round "08"]
[TimeControl "180+1"]
[Date "2021.07.06"]
[WhiteClock "0:00:08"]
[BlackClock "0:00:06"]

1. e4 {[%clk 0:03:00]}  e5 {[%clk 0:02:58]} 2. Nf3 {[%clk 0:03:00]}  Nc6 {[%clk 0:02:57]} 3. Bc4 {[%clk 0:03:00]}  Nf6 {[%clk 0:02:55]} 4. d3 {[%clk 0:03:01]}  h6 {[%clk 0:02:55]} 5. O-O {[%clk 0:03:01]}  d6 {[%clk 0:02:55]} 6. c3 {[%clk 0:03:02]}  g5 {[%clk 0:02:54]} 7. a4 {[%clk 0:03:01]}  g4 {[%clk 0:02:53]} 8. Nfd2 {[%clk 0:03:01]}  Bg7 {[%clk 0:02:50]} 9. Na3 {[%clk 0:03:00]}  h5 {[%clk 0:02:49]} 10. Nc2 {[%clk 0:03:00]}  Be6 {[%clk 0:02:47]} 11. Ne3 {[%clk 0:03:00]}  Qd7 {[%clk 0:02:45]} 12. a5 {[%clk 0:02:50]}  a6 {[%clk 0:02:44]} 13. f4 {[%clk 0:02:43]}  exf4 {[%clk 0:02:39]} 14. Rxf4 {[%clk 0:02:43]}  Ne5 {[%clk 0:02:34]} 15. Qf1 {[%clk 0:02:14]}  Bh6 {[%clk 0:02:26]} 16. Bxe6 {[%clk 0:02:09]}  fxe6 {[%clk 0:02:23]} 17. Rxf6 {[%clk 0:02:01]}  Bxe3+ {[%clk 0:02:20]} 18. Kh1 {[%clk 0:02:02]}  O-O-O {[%clk 0:02:20]} 19. d4 {[%clk 0:01:58]}  Nc6 {[%clk 0:01:44]} 20. Nc4 {[%clk 0:01:56]}  Bxc1 {[%clk 0:01:44]} 21. Rxc1 {[%clk 0:01:56]}  Qe7 {[%clk 0:01:33]} 22. Rc2 {[%clk 0:01:25]}  d5 {[%clk 0:01:29]} 23. exd5 {[%clk 0:01:21]}  exd5 {[%clk 0:01:27]} 24. Re2 {[%clk 0:01:21]}  Qg7 {[%clk 0:01:25]} 25. Qf5+ {[%clk 0:01:09]}  Kb8 {[%clk 0:01:22]} 26. Ne5 {[%clk 0:01:03]}  Nxa5 {[%clk 0:01:03]} 27. Rf7 {[%clk 0:00:58]}  Qh6 {[%clk 0:00:48]} 28. g3 {[%clk 0:00:49]}  h4 {[%clk 0:00:46]} 29. gxh4 {[%clk 0:00:41]}  Qc1+ {[%clk 0:00:42]} 30. Kg2 {[%clk 0:00:36]}  Rxh4 {[%clk 0:00:40]} 31. Nd7+ {[%clk 0:00:28]}  Ka7 {[%clk 0:00:38]} 32. Nf8 {[%clk 0:00:22]}  Rd6 {[%clk 0:00:28]} 33. Ng6 {[%clk 0:00:20]}  Rh6 {[%clk 0:00:22]} 34. Ne7 {[%clk 0:00:20]}  Rxh2+ {[%clk 0:00:19]} 35. Kxh2 {[%clk 0:00:18]}  Rh6+ {[%clk 0:00:19]} 36. Kg3 {[%clk 0:00:19]}  Qg1+ {[%clk 0:00:17]} 37. Kf4 {[%clk 0:00:16]}  g3 {[%clk 0:00:15]} 38. Nc8+ {[%clk 0:00:14]}  Kb8 {[%clk 0:00:14]} 39. Rf8 {[%clk 0:00:14]}  b5 {[%clk 0:00:09]} 40. Nd6+ {[%clk 0:00:13]}  Ka7 {[%clk 0:00:09]} 41. Ra8+ {[%clk 0:00:10]}  Kb6 {[%clk 0:00:08]} 42. Rxa6+ {[%clk 0:00:08]}  Kxa6 {[%clk 0:00:06]} 43. Qc8+ {[%clk 0:00:09]}  Kb6 {[%clk 0:00:06]} 44. Qb8+ {[%clk 0:00:09]}  Kc6 {[%clk 0:00:06]} 45. Qxb5+ {[%clk 0:00:08]}  Kxd6 {[%clk 0:00:06]} 46. Qc5+ {[%clk 0:00:08]} 1-0


[Site "https://www.chess.com"]